bitfinex-derivatives/quotes_BTCF0:USTF0_20250406
["timestamp","ask_amount","ask_price","bid_price","bid_amount"]
[1743961148674,0.12592001,81492.0,81490.0,0.0859323]
[1743961148986,0.1205,81491.0,81490.0,0.00112]
[1743961149174,0.00112001,81491.0,81490.0,0.00112]
[1743961149380,0.0799758,81506.0,81494.0,0.0429642]
[1743961149682,0.00068,81503.0,81496.0,0.10412432]
[1743961149879,0.3608,81510.0,81496.0,0.10412432]
[1743961149880,0.3608,81502.0,81496.0,0.21149072]
[1743961150186,0.3608,81502.0,81501.0,0.0859211]
[1743961150381,0.3608,81502.0,81501.0,0.01144]
[1743961150586,0.36098412,81510.0,81501.0,0.13414013]
[1743961150787,0.36098412,81510.0,81502.0,0.1258]
[1743961150980,0.36098412,81510.0,81503.0,0.0859185]
[1743961151180,0.36098412,81510.0,81503.0,0.0973985]
[1743961151483,0.36098412,81510.0,81505.0,0.085916]
[1743961151689,0.36098412,81510.0,81505.0,0.087436]
[1743961151891,0.36098412,81510.0,81505.0,0.00152]
[1743961152274,0.36098412,81510.0,81499.0,8e-05]
[1743961152474,0.3608,81502.0,81499.0,8e-05]
[1743961152684,0.1243,81501.0,81500.0,0.1226896]
[1743961152880,0.1243,81501.0,81500.0,0.00144]
[1743961153083,0.1243,81501.0,81498.0,0.00018412]
[1743961153285,0.3608,81499.0,81495.0,8e-05]
[1743961153477,0.1243,81498.0,81488.0,0.00144]
[1743961153782,0.1243,81498.0,81484.0,8e-05]
[1743961153783,0.3608,81489.0,81484.0,8e-05]
[1743961153985,0.3608,81486.0,81470.0,0.3300215]
[1743961154190,0.3608,81476.0,81473.0,8e-05]
[1743961154482,0.3608,81476.0,81472.0,0.12270992]
[1743961154483,0.1316,81475.0,81472.0,0.12270992]
[1743961154674,0.1316,81475.0,81470.0,0.4160551]
[1743961154675,0.2592,81475.0,81470.0,0.4160551]
[1743961154879,0.2592,81475.0,81470.0,0.3301015]
[1743961155078,0.2592,81475.0,81471.0,0.12270992]
[1743961156075,0.2592,81475.0,81470.0,0.3301015]
[1743961156076,0.2592,81475.0,81470.0,0.3300215]
[1743961156287,0.0859498,81474.0,81470.0,0.3300215]
[1743961156493,0.0859507,81473.0,81470.0,0.3300215]
[1743961156788,0.0859527,81471.0,81470.0,0.26854886]
[1743961156977,0.2574,81473.0,81470.0,0.26854886]
[1743961157685,0.2574,81473.0,81470.0,0.35450226]
[1743961157987,0.2574,81473.0,81470.0,0.26854886]
[1743961158787,0.0859527,81471.0,81470.0,0.26854886]
[1743961158991,0.085957,81467.0,81466.0,0.00026412]
[1743961159185,0.446757,81467.0,81466.0,0.00026412]
[1743961159385,0.446757,81467.0,81462.0,8e-05]
[1743961159386,0.0859612,81463.0,81462.0,8e-05]
[1743961159581,0.0866012,81463.0,81462.0,0.00064]
[1743961159788,0.0859665,81458.0,81457.0,0.37979371]
[1743961160087,0.36168,81458.0,81457.0,0.38043371]
[1743961160392,0.4476465,81458.0,81457.0,0.38043371]
[1743961160587,0.36168,81458.0,81457.0,0.38043371]
[1743961160884,0.49308,81458.0,81457.0,0.51765518]
[1743961161087,0.49308,81458.0,81457.0,0.64041104]
[1743961161282,0.49308,81458.0,81457.0,0.55444354]
[1743961161679,0.00043176,81458.0,81457.0,0.89041104]
[1743961161887,0.1314,81467.0,81458.0,0.0429832]
[1743961162089,0.00098412,81466.0,81458.0,0.0637432]
[1743961162479,0.00098412,81466.0,81458.0,0.02076]
[1743961162685,0.00098412,81466.0,81459.0,0.06129076]
[1743961162990,0.00098412,81466.0,81459.0,0.07193076]
[1743961164082,0.0859595,81465.0,81459.0,0.07193076]
[1743961164283,0.132,81464.0,81459.0,0.07193076]
[1743961164491,0.13268,81464.0,81459.0,0.07193076]
[1743961164690,0.13268,81464.0,81460.0,0.2425]
[1743961164884,0.13268,81464.0,81460.0,0.25314]
[1743961165484,0.0859633,81461.0,81460.0,0.13184]
[1743961165682,0.0866433,81461.0,81460.0,0.13184]
[1743961165878,0.0866433,81461.0,81460.0,0.06036736]
[1743961166179,0.00068,81461.0,81460.0,0.18312398]
[1743961167088,0.0866433,81461.0,81460.0,0.18312398]
[1743961167481,0.00068,81461.0,81460.0,0.18312398]
[1743961168194,0.00068,81461.0,81460.0,0.12339662]
[1743961168692,0.4474433,81461.0,81460.0,0.00064]
[1743961168991,0.0859657,81459.0,81452.0,0.2626]
[1743961169180,0.2067673,81458.0,81452.0,0.31494026]
[1743961169381,0.24428001,81458.0,81452.0,0.31494026]
[1743961169586,0.12348001,81458.0,81453.0,0.12275888]
[1743961169779,0.00088001,81458.0,81456.0,0.0859682]
[1743961169987,0.00088001,81458.0,81456.0,0.00064]
[1743961170186,0.00088001,81458.0,81457.0,0.2626]
[1743961170386,0.00088001,81458.0,81457.0,0.38536415]
[1743961170587,0.1226,81460.0,81457.0,0.38536415]
[1743961170798,0.3608,81458.0,81457.0,0.38536415]
[1743961171295,0.3608,81458.0,81457.0,0.12276415]
[1743961171486,0.4467669,81458.0,81452.0,0.06091384]
[1743961171687,0.0429843,81456.0,81452.0,0.00929358]
[1743961171989,0.2509,81455.0,81453.0,0.12276189]
[1743961172190,0.2509,81455.0,81449.0,0.00018412]
[1743961172191,0.2509,81455.0,81452.0,0.04962031]
[1743961172491,0.2509,81455.0,81450.0,0.12276867]
[1743961172696,0.2509,81455.0,81450.0,0.24546867]
[1743961172995,0.085972,81453.0,81450.0,0.12284867]
[1743961173194,0.2938848,81455.0,81450.0,0.12284867]
[1743961173694,0.2938848,81455.0,81450.0,0.00924924]
[1743961173695,0.4467739,81451.0,81450.0,0.00924924]
[1743961173885,0.3608,81451.0,81450.0,0.00924924]
[1743961174081,0.3608,81451.0,81450.0,0.00916924]
[1743961174295,0.3608,81451.0,81449.0,0.05140525]
[1743961174596,0.245,81450.0,81449.0,0.05140525]
[1743961175095,0.245,81450.0,81441.0,8e-05]
[1743961175096,0.24596001,81450.0,81441.0,0.12343249]
[1743961175297,0.3608,81443.0,81441.0,0.12411249]
[1743961175492,0.2511,81442.0,81441.0,0.12411249]
[1743961175695,0.25198001,81442.0,81441.0,0.12411249]
[1743961175888,0.25212428,81442.0,81441.0,0.12411249]
[1743961176192,0.00102428,81442.0,81441.0,0.38364961]
[1743961176393,0.00014427,81442.0,81441.0,0.51094961]
[1743961176787,0.00014427,81442.0,81441.0,0.42496521]
[1743961177992,0.00102428,81442.0,81441.0,0.36354996]
[1743961178397,0.24902428,81442.0,81441.0,0.36354996]
[1743961178693,0.12512428,81442.0,81441.0,0.36354996]
[1743961179390,0.12512428,81442.0,81441.0,0.30153272]
[1743961179590,0.12512428,81442.0,81441.0,0.0514452]
[1743961179791,0.12512428,81442.0,81441.0,0.1806652]
[1743961179997,0.12512428,81442.0,81441.0,0.0514052]
[1743961180201,0.12512428,81442.0,81440.0,0.00919871]
[1743961180408,0.1239,81441.0,81440.0,0.00919871]
[1743961180694,0.12478001,81441.0,81440.0,0.00919871]
[1743961180886,0.00088001,81441.0,81438.0,0.0518093]
[1743961181085,0.00088001,81441.0,81440.0,0.20877302]
[1743961181285,0.00088001,81441.0,81440.0,0.20965302]
[1743961181491,0.00088001,81441.0,81440.0,0.0968655]
[1743961181702,0.00088001,81441.0,81440.0,0.21965453]
[1743961183302,0.00088001,81441.0,81440.0,0.36965453]
[1743961183498,0.00014427,81442.0,81441.0,0.0859844]
[1743961183795,0.00014427,81442.0,81441.0,0.3366244]
[1743961184107,0.00014427,81442.0,81441.0,0.63332903]
[1743961184400,0.00014427,81442.0,81441.0,0.84541343]
[1743961184601,0.00018412,81450.0,81445.0,0.0859799]
[1743961184799,0.00018412,81450.0,81446.0,0.2579]
[1743961184997,0.00018412,81450.0,81446.0,0.27862]
[1743961185303,0.00018412,81450.0,81447.0,0.12277772]
[1743961185502,0.00018412,81450.0,81447.0,0.14349772]
[1743961185802,0.00018412,81450.0,81448.0,0.2579]
[1743961185999,0.00018412,81450.0,81448.0,0.27854]
[1743961186506,0.00018412,81450.0,81449.0,0.12277621]
[1743961186703,0.00018412,81450.0,81449.0,0.14341621]
[1743961186896,0.00018412,81450.0,81449.0,0.12341621]
[1743961187194,0.00018412,81450.0,81449.0,0.30620096]
[1743961187401,0.00018412,81450.0,81449.0,0.39217696]
[1743961187602,0.00018412,81450.0,81449.0,0.30620096]
[1743961190002,0.00018412,81450.0,81449.0,0.39217696]
[1743961190208,0.00018412,81450.0,81449.0,0.24478571]
[1743961190507,0.00018412,81450.0,81449.0,0.36756117]
[1743961191197,0.00018412,81450.0,81449.0,0.45353717]
[1743961191398,0.00018412,81450.0,81449.0,0.36756117]
[1743961192098,0.00018412,81450.0,81449.0,0.45353717]
[1743961193209,0.00018412,81450.0,81449.0,0.39212192]
[1743961193403,0.00018412,81450.0,81449.0,0.30678592]
[1743961193706,0.00018412,81450.0,81449.0,0.39276192]
[1743961193899,0.00018412,81450.0,81449.0,0.30678592]
[1743961194104,0.2568,81458.0,81449.0,0.30678592]
[1743961194105,0.1329,81458.0,81457.0,0.0859675]
[1743961194400,0.13406,81458.0,81457.0,0.01064]
[1743961194802,0.1329,81458.0,81457.0,0.13341546]
[1743961194994,0.1329,81458.0,81457.0,0.34458296]
[1743961195201,0.1329,81458.0,81457.0,0.25861546]
[1743961195601,0.0859349,81488.0,81457.0,0.54041546]
[1743961195803,0.36192001,81475.0,81468.0,0.0859552]
[1743961196105,0.00228001,81475.0,81469.0,0.31558475]
[1743961196407,0.1221,81474.0,81469.0,0.33558475]
[1743961196614,0.1221,81474.0,81469.0,0.54428185]
[1743961197712,0.1221,81474.0,81469.0,0.45832705]
[1743961198211,0.1221,81474.0,81469.0,0.32652705]
[1743961198511,0.1221,81474.0,81469.0,0.1427423]
[1743961198710,0.1291,81473.0,81469.0,0.1427423]
[1743961199101,0.13,81472.0,81469.0,0.1427423]
[1743961199302,0.13,81472.0,81469.0,0.09132705]
[1743961199501,0.1291,81471.0,81469.0,0.08132705]
[1743961200006,0.13,81470.0,81469.0,0.08196705]
[1743961200314,0.00108,81470.0,81469.0,0.40792195]
[1743961200611,0.1291,81471.0,81470.0,0.0859538]
[1743961200806,0.4832,81492.0,81491.0,0.0859317]
[1743961201009,0.36188,81492.0,81491.0,0.00064]
[1743961201305,0.36188,81492.0,81491.0,0.12271218]
[1743961201712,0.36188,81492.0,81491.0,0.00116]
[1743961201910,0.36188,81492.0,81485.0,0.0859377]
[1743961202103,0.1316,81491.0,81486.0,0.20864868]
[1743961202301,0.00108,81491.0,81490.0,0.4467327]
[1743961202599,0.3608,81518.0,81504.0,0.1718351]
[1743961202600,0.1247,81518.0,81504.0,0.1718351]
[1743961202805,0.1247,81518.0,81505.0,0.2581]
[1743961203010,0.26614172,81517.0,81505.0,0.25874]
[1743961203209,0.26614192,81517.0,81505.0,0.25874]
[1743961203408,0.18023712,81517.0,81507.0,0.0859148]
[1743961203605,0.18023712,81517.0,81507.0,0.0865548]
[1743961203606,0.00112,81508.0,81507.0,0.0865548]
[1743961203811,0.0004,81508.0,81507.0,0.3546548]
[1743961204199,0.0004,81508.0,81507.0,0.4773444]
[1743961204809,0.0004,81508.0,81507.0,0.66234595]
[1743961205011,0.00018412,81515.0,81509.0,0.0859127]
[1743961205210,0.00018412,81515.0,81509.0,0.13064]
[1743961205515,0.00018412,81515.0,81514.0,0.0859074]
[1743961205712,0.00018412,81515.0,81514.0,0.37144]
[1743961206307,0.00018412,81515.0,81514.0,0.49411756]
[1743961206812,0.08609052,81515.0,81514.0,0.48411756]
[1743961207007,0.00090412,81515.0,81514.0,0.00064]
[1743961207308,0.0429553,81511.0,81507.0,8e-05]
[1743961207519,0.3608,81508.0,81505.0,0.00914594]
[1743961207815,0.2612,81507.0,81498.0,0.00026412]
[1743961208113,0.262,81507.0,81498.0,0.00026412]
[1743961208312,0.262,81507.0,81499.0,0.06126231]
[1743961208706,0.0859168,81506.0,81502.0,0.29204555]
[1743961208906,0.0008,81506.0,81502.0,0.29268555]
[1743961209109,0.2627,81505.0,81502.0,0.29268555]
[1743961209317,0.26342,81505.0,81502.0,0.29268555]
[1743961210913,0.26342,81505.0,81502.0,0.30183027]
[1743961211316,0.13222,81505.0,81504.0,0.0859179]
[1743961211617,0.13222,81505.0,81504.0,0.0865579]
[1743961211911,0.00072,81505.0,81504.0,0.0965579]
[1743961212117,0.2469,81514.0,81511.0,0.0859104]
[1743961212320,0.24762,81514.0,81512.0,0.1249]
[1743961212617,0.24762,81514.0,81512.0,0.12554]
[1743961212804,0.24762,81514.0,81502.0,0.00914472]
[1743961213009,0.24762,81514.0,81502.0,0.01]
[1743961213209,0.24762,81514.0,81506.0,0.12269261]
[1743961213409,0.24762,81514.0,81506.0,0.00064]
[1743961213616,0.24762,81514.0,81502.0,0.00919902]
[1743961213810,0.24762,81514.0,81503.0,0.12268734]
[1743961214016,0.3608,81510.0,81503.0,0.01064]
[1743961214211,0.2517,81509.0,81499.0,0.0860024]
[1743961214411,0.25242,81509.0,81499.0,0.01983987]
[1743961214612,0.25242,81509.0,81502.0,0.04296]
[1743961214807,0.00072,81509.0,81508.0,0.0859137]
[1743961215014,0.00072,81509.0,81508.0,0.00068]
[1743961215215,0.25632,81509.0,81508.0,0.12336659]
[1743961215411,0.61712,81509.0,81508.0,0.12336659]
[1743961215610,0.61712,81509.0,81499.0,0.00911987]
[1743961215806,0.61712,81509.0,81504.0,8e-05]
[1743961216010,0.61712,81509.0,81500.0,0.12268659]
[1743961216210,0.61712,81509.0,81501.0,8e-05]
[1743961216412,0.61712,81509.0,81501.0,0.01072]
[1743961216618,0.61712,81509.0,81502.0,0.1226896]
[1743961216815,0.61712,81509.0,81502.0,0.1233296]
[1743961217112,0.61712,81509.0,81502.0,0.00064]
[1743961217313,0.1311,81508.0,81497.0,8e-05]
[1743961217515,0.0859193,81503.0,81497.0,0.00064]
[1743961217715,0.0437598,81503.0,81497.0,0.00064]
[1743961217905,0.348821,81502.0,81497.0,0.00064]
[1743961218107,0.26362,81502.0,81497.0,0.00064]
[1743961218922,0.26362,81502.0,81497.0,0.0865649]
[1743961219218,0.26362,81502.0,81500.0,0.0859218]
[1743961219413,0.26362,81502.0,81501.0,0.0859211]
[1743961219608,0.26362,81502.0,81501.0,0.0865611]
[1743961219911,0.13202,81502.0,81501.0,0.21926123]
[1743961220107,0.1313,81502.0,81501.0,0.21926123]
[1743961220413,0.1316,81507.0,81504.0,0.0429585]
[1743961220613,0.1203,81506.0,81505.0,0.3488169]
[1743961220813,0.1211,81506.0,81505.0,0.3495369]
[1743961221218,0.1211,81506.0,81505.0,0.47223402]
[1743961221820,0.1211,81506.0,81505.0,0.33983402]
[1743961222020,0.0008,81506.0,81505.0,0.34983402]
[1743961222320,0.2502,81514.0,81513.0,0.0859085]
[1743961222622,0.25092,81514.0,81513.0,0.0859085]
[1743961222920,0.25092,81514.0,81513.0,0.2092396]
[1743961223423,0.25092,81514.0,81513.0,0.1233311]
[1743961223718,0.25092,81514.0,81513.0,0.2092396]
[1743961224115,0.25092,81514.0,81513.0,0.3398396]
[1743961224415,0.6976274,81514.0,81513.0,0.00064]
[1743961224718,0.61172,81514.0,81507.0,8e-05]
[1743961225108,0.6976275,81514.0,81500.0,0.46492432]
[1743961225308,0.61172,81514.0,81502.0,8e-05]
[1743961225521,0.61172,81514.0,81502.0,0.00072]
[1743961225710,0.3608,81507.0,81502.0,0.00072]
[1743961225911,0.0859174,81505.0,81502.0,0.00072]
[1743961226214,0.0859174,81505.0,81497.0,8e-05]
[1743961226215,0.254,81504.0,81497.0,8e-05]
[1743961226417,0.254,81504.0,81496.0,0.123]
[1743961226623,0.254,81504.0,81500.0,0.12269411]
[1743961226920,0.254,81504.0,81497.0,0.1226]
[1743961227121,0.254,81504.0,81499.0,0.0859229]
[1743961227321,0.254,81504.0,81500.0,0.2085216]
[1743961227516,0.254,81504.0,81500.0,0.1326]
[1743961227718,0.254,81504.0,81501.0,0.12269863]
[1743961227918,0.254,81504.0,81501.0,0.20861943]
[1743961228223,0.00018412,81515.0,81510.0,0.0859111]
[1743961228420,0.1283,81513.0,81511.0,0.1226]
[1743961228808,0.1283,81513.0,81512.0,0.0859095]
[1743961229013,0.1283,81513.0,81512.0,0.20860512]
[1743961229417,0.1283,81513.0,81512.0,0.33120512]
[1743961229714,0.1283,81513.0,81512.0,0.45610512]
[1743961231223,0.1283,81513.0,81512.0,0.45674512]
[1743961231424,0.1283,81513.0,81512.0,0.46674512]
[1743961232624,0.1283,81513.0,81512.0,0.31942037]
[1743961232822,0.12906,81513.0,81512.0,0.31942037]
[1743961233125,0.12906,81513.0,81512.0,0.19682037]
[1743961233527,0.12906,81513.0,81512.0,0.07192037]
[1743961234328,0.2149685,81513.0,81512.0,0.00064]
[1743961234626,0.3447685,81513.0,81512.0,0.00064]
[1743961235620,0.0859095,81512.0,81511.0,0.30528171]
[1743961235822,0.2068295,81512.0,81511.0,0.30592171]
[1743961236122,0.3328295,81512.0,81511.0,0.30592171]
[1743961238321,0.24692,81512.0,81511.0,0.30592171]
[1743961238618,0.24692,81512.0,81507.0,0.0859145]
[1743961238815,0.3608,81508.0,81507.0,0.0859145]
[1743961239017,0.36192001,81508.0,81507.0,0.0865545]
[1743961239819,0.36192001,81508.0,81507.0,0.00064]
[1743961240927,0.44783371,81508.0,81507.0,0.00064]
[1743961241129,0.0859215,81501.0,81492.0,0.133]
[1743961241331,0.3608,81495.0,81492.0,0.133]
[1743961241531,0.3608,81495.0,81494.0,0.12268809]
[1743961241825,0.0859285,81494.0,81491.0,0.44118543]
[1743961242028,0.0859306,81492.0,81491.0,0.44118543]
[1743961243129,0.0859306,81492.0,81491.0,0.00018412]
[1743961243328,0.08705061,81492.0,81491.0,0.00018412]
[1743961244734,0.085938,81485.0,81484.0,0.84244678]
[1743961245126,0.087098,81485.0,81484.0,0.84244678]
[1743961245334,0.087098,81485.0,81484.0,0.97174678]
[1743961245739,0.087098,81485.0,81484.0,1.03339116]
[1743961246924,0.00116,81485.0,81484.0,1.03339116]
[1743961247121,0.00116,81485.0,81484.0,1.15611388]
[1743961247439,0.00116,81485.0,81484.0,1.38435288]
[1743961247631,0.00116,81485.0,81484.0,0.4560471]
[1743961247836,0.00116,81485.0,81484.0,0.48057085]
[1743961248333,0.00116,81485.0,81484.0,0.39463185]
[1743961248523,0.00116,81485.0,81484.0,0.1843671]
[1743961250137,0.00116,81485.0,81484.0,0.06164438]
[1743961250440,0.00116,81485.0,81483.0,0.00061362]
[1743961250735,0.00116,81485.0,81481.0,0.06649837]
[1743961250933,0.00116,81485.0,81480.0,0.44073268]
[1743961251231,0.00116,81485.0,81481.0,0.12272272]
[1743961251432,0.0870984,81485.0,81481.0,0.1744721]
[1743961251622,0.00116,81485.0,81481.0,0.05174938]
[1743961251826,0.0859392,81484.0,81476.0,0.00018412]
[1743961252025,0.0429708,81482.0,81476.0,0.00018412]
[1743961252239,0.3608,81479.0,81477.0,0.12272573]
[1743961252422,0.3608,81479.0,81477.0,0.17407287]
[1743961252738,0.3608,81479.0,81477.0,0.05134714]
[1743961252932,0.3608,81479.0,81476.0,0.00018412]
[1743961253440,0.1297,81478.0,81476.0,0.00018412]
[1743961253939,0.1297,81478.0,81471.0,0.43043614]
[1743961254133,0.00112001,81478.0,81473.0,0.0859501]
[1743961254325,0.00112001,81478.0,81472.0,0.1208]
[1743961255439,0.1252,81477.0,81472.0,0.1208]
[1743961256037,0.1252,81477.0,81472.0,0.2451]
[1743961257040,0.1252,81477.0,81472.0,0.18368475]
[1743961257829,0.12632001,81477.0,81472.0,0.18368475]
[1743961258034,0.00112001,81477.0,81475.0,0.0859476]
[1743961258237,0.00112001,81477.0,81476.0,0.2527]
[1743961258535,0.00112001,81477.0,81471.0,0.05093459]
[1743961258740,0.1323,81476.0,81470.0,8e-05]
[1743961258932,0.0859501,81474.0,81472.0,0.12273552]
[1743961259132,0.3442506,81473.0,81470.0,0.05114602]
[1743961259329,0.30239541,81473.0,81467.0,0.00026412]
[1743961259536,0.4467559,81468.0,81467.0,0.00018412]
[1743961259730,0.4479159,81468.0,81467.0,0.00018412]
[1743961260043,0.36196,81468.0,81466.0,0.05051023]
[1743961260236,0.2449,81467.0,81466.0,0.05051023]
[1743961260543,0.2449,81467.0,81464.0,0.0859599]
[1743961260727,0.24602001,81467.0,81464.0,0.2076599]
[1743961260933,0.00010594,81466.0,81464.0,0.24444908]
[1743961261442,0.24500594,81466.0,81464.0,0.24444908]
[1743961262039,0.12190594,81466.0,81465.0,0.0859591]
[1743961262232,0.12302595,81466.0,81465.0,0.0859591]
[1743961262450,0.12302595,81466.0,81465.0,0.2076591]
[1743961262635,0.12302595,81466.0,81465.0,0.33041044]
[1743961262835,0.12302595,81466.0,81465.0,0.24445134]
[1743961263147,0.00122595,81466.0,81465.0,0.48041044]
[1743961263351,0.00122595,81466.0,81465.0,0.60531044]
[1743961263645,0.00122595,81466.0,81465.0,0.36935134]
[1743961263839,0.08718395,81466.0,81465.0,0.12275134]
[1743961264032,0.00122595,81466.0,81465.0,0.12275134]
[1743961264232,0.00122595,81466.0,81461.0,0.06001855]
[1743961264432,0.00122595,81466.0,81460.0,0.1221]
[1743961264433,0.2626,81465.0,81462.0,0.12275134]
[1743961264843,0.2626,81465.0,81461.0,0.05232043]
[1743961264844,0.26372001,81465.0,81461.0,0.05232043]
[1743961265049,0.26372001,81465.0,81451.0,0.1221]
[1743961265233,0.3608,81454.0,81453.0,0.2092517]
[1743961265437,0.3608,81454.0,81453.0,0.12328]
[1743961265741,0.3608,81454.0,81453.0,0.24596114]
[1743961265941,0.3608,81454.0,81453.0,0.18454589]
[1743961266148,0.3608,81454.0,81453.0,0.27051759]
[1743961266349,0.3608,81454.0,81453.0,0.27961393]
[1743961266643,0.3608,81454.0,81453.0,0.18454589]
[1743961266942,0.36192001,81454.0,81448.0,8e-05]
[1743961267144,0.085977,81448.0,81447.0,0.00061389]
[1743961267351,0.085977,81448.0,81447.0,1e-08]
[1743961267548,0.08709701,81448.0,81447.0,1e-08]
[1743961267944,0.21329701,81448.0,81447.0,1e-08]
[1743961269047,0.0859791,81447.0,81441.0,0.50225422]
[1743961269348,0.3608,81442.0,81441.0,0.50225422]
[1743961269543,0.3608,81442.0,81441.0,0.55500955]
[1743961269746,0.3608,81442.0,81441.0,0.64099395]
[1743961270142,0.36192001,81442.0,81441.0,0.64163395]
[1743961270753,0.36192001,81442.0,81441.0,0.13937973]
[1743961270951,0.36192001,81442.0,81441.0,0.26316725]
[1743961271854,0.36192001,81442.0,81441.0,0.66866725]
[1743961272058,0.36192001,81442.0,81441.0,0.607252]
[1743961272243,0.36192001,81442.0,81441.0,0.457252]
[1743961274253,0.36192001,81442.0,81441.0,0.50834116]
[1743961274554,0.36192001,81442.0,81441.0,0.43101668]
[1743961275254,0.36192001,81442.0,81441.0,0.36960143]
[1743961275650,0.36192001,81442.0,81441.0,0.11510143]
[1743961275855,0.44790341,81442.0,81441.0,0.05308916]
[1743961276252,0.36192001,81442.0,81441.0,0.05308916]
[1743961276451,0.44790341,81442.0,81441.0,0.05308916]
[1743961276955,0.36192001,81442.0,81441.0,0.06308916]
[1743961277339,0.36192001,81442.0,81441.0,0.27186108]
[1743961277740,0.36192001,81442.0,81441.0,0.18587668]
[1743961278148,0.36192001,81442.0,81441.0,0.12446143]
[1743961279359,0.36192001,81442.0,81441.0,0.12278752]
[1743961279748,0.36192001,81442.0,81438.0,0.0860672]
[1743961279955,0.2483,81441.0,81438.0,0.26063235]
[1743961280454,0.2483,81441.0,81438.0,0.38543195]
[1743961280653,0.1245,81441.0,81440.0,0.0859855]
[1743961280847,0.1245,81441.0,81440.0,0.1059855]
[1743961281156,0.1245,81441.0,81440.0,0.1417]
[1743961281357,0.2549,81441.0,81440.0,0.26449053]
[1743961281547,0.2549,81441.0,81440.0,0.14279053]
[1743961281746,0.2549,81441.0,81440.0,0.22977603]
[1743961281953,0.2549,81441.0,81440.0,0.14379053]
[1743961282147,0.2549,81441.0,81440.0,0.22977603]
[1743961282348,0.25622,81441.0,81440.0,0.14379053]
[1743961282955,0.25622,81441.0,81440.0,0.22977603]
[1743961283355,0.12582,81441.0,81440.0,0.22977603]
[1743961283558,0.12582,81441.0,81440.0,0.48087603]
[1743961284253,0.12582,81441.0,81440.0,0.09237528]
[1743961284455,0.25402,81441.0,81440.0,0.08237528]
[1743961287162,0.8263044,81441.0,81440.0,0.02096003]
[1743961287460,0.8263044,81441.0,81438.0,0.05177763]
[1743961287461,0.0859865,81439.0,81438.0,0.05177763]
[1743961287661,0.0443532,81439.0,81424.0,0.00184226]
[1743961287860,0.0859893,81437.0,81435.0,8e-05]
[1743961288062,0.0859893,81437.0,81427.0,0.12278903]
[1743961288063,0.0859968,81430.0,81427.0,0.12278903]
[1743961288265,0.3777,81429.0,81426.0,0.00922189]
[1743961288564,0.086015,81412.0,81411.0,0.00061416]
[1743961288763,0.808935,81412.0,81411.0,0.00061416]
[1743961289057,0.0860224,81405.0,81398.0,0.00184287]
[1743961289255,0.4468224,81405.0,81398.0,0.00184287]
[1743961289459,0.0860256,81402.0,81401.0,8e-05]
[1743961289652,0.0860256,81402.0,81398.0,0.00184287]
[1743961289653,0.0860267,81401.0,81398.0,0.00184287]
[1743961289849,0.0860267,81401.0,81396.0,0.58407872]
[1743961289850,0.76042,81401.0,81397.0,0.58407872]
[1743961290054,0.0860298,81398.0,81397.0,0.58407872]
[1743961290262,0.1860298,81398.0,81397.0,0.52266347]
[1743961290455,0.4860298,81398.0,81397.0,0.32286347]
[1743961290655,0.33616865,81398.0,81397.0,0.32286347]
[1743961290862,0.08616865,81398.0,81397.0,0.32286347]
[1743961291358,0.00013885,81398.0,81397.0,0.32286347]
[1743961291563,0.08616865,81398.0,81397.0,0.40889437]
[1743961291753,0.08616865,81398.0,81397.0,0.32286347]
[1743961291754,0.18716865,81398.0,81397.0,0.32286347]
[1743961291950,0.0883898,81398.0,81397.0,0.32286347]
[1743961292252,0.3393898,81398.0,81397.0,0.32286347]
[1743961292560,0.0860362,81392.0,81389.0,8e-05]
[1743961292860,0.4468383,81390.0,81389.0,8e-05]
[1743961293175,0.0860425,81386.0,81385.0,8e-05]
[1743961293462,0.0860425,81386.0,81355.0,0.0430372]
[1743961293463,0.0860534,81376.0,81365.0,0.2454]
[1743961293661,0.1231,81375.0,81374.0,0.0860552]
[1743961293862,0.6970741,81375.0,81374.0,0.0860552]
[1743961294158,0.0860552,81374.0,81373.0,0.00016]
[1743961294364,0.08752705,81374.0,81373.0,0.00016]
[1743961294562,0.08752705,81374.0,81368.0,0.00184356]
[1743961294563,0.25037185,81374.0,81368.0,0.00184356]
[1743961294761,0.0860605,81369.0,81368.0,0.00192356]
[1743961295066,0.0873805,81369.0,81368.0,0.00184356]
[1743961295265,0.00132,81369.0,81368.0,0.00184356]
[1743961295561,0.00132,81369.0,81368.0,0.13473369]
[1743961296265,0.00132,81369.0,81368.0,0.07331844]
[1743961296569,0.00015185,81374.0,81368.0,0.57634343]
[1743961296865,0.00015185,81374.0,81368.0,0.19835844]
[1743961297562,0.00107185,81374.0,81368.0,0.34835844]
[1743961297863,0.00207185,81374.0,81368.0,0.34835844]
[1743961298058,0.00207185,81374.0,81370.0,0.0860594]
[1743961298257,0.00207185,81374.0,81371.0,0.1224]
[1743961298458,0.26305608,81383.0,81371.0,0.4888]
[1743961298664,0.001,81374.0,81371.0,0.4888]
[1743961298857,0.001,81374.0,81372.0,0.12289239]
[1743961299165,0.001,81374.0,81372.0,0.19289239]
[1743961299367,0.001,81374.0,81373.0,0.31118475]
[1743961299558,0.00109986,81374.0,81373.0,0.34118475]
[1743961299975,0.00109986,81374.0,81373.0,0.46407563]
[1743961300267,0.00109986,81374.0,81373.0,0.46479563]
[1743961301466,0.00018435,81381.0,81373.0,0.46479563]
[1743961301762,0.001,81374.0,81373.0,0.36646971]
[1743961302164,0.001,81374.0,81373.0,0.46597027]
[1743961302468,0.001,81374.0,81373.0,0.40455502]
[1743961302855,0.00018435,81381.0,81378.0,0.043025]
[1743961303060,0.00018435,81381.0,81380.0,0.0860489]
[1743961303061,0.00114435,81381.0,81380.0,0.0860489]
[1743961303369,0.00911797,81387.0,81383.0,0.0860451]
[1743961303566,0.00911797,81387.0,81384.0,0.1253]
[1743961303567,0.00995797,81387.0,81384.0,0.1253]
[1743961303870,0.00084,81387.0,81384.0,0.45090875]
[1743961304076,0.00084,81387.0,81386.0,0.0860425]
[1743961304271,0.00084,81387.0,81386.0,0.03072]
[1743961304769,0.00911797,81389.0,81386.0,0.239633]
[1743961304966,0.14437558,81394.0,81386.0,0.239633]
[1743961304967,0.07929241,81394.0,81393.0,0.0860351]
[1743961305264,0.07929241,81394.0,81393.0,0.27]
[1743961305568,0.07929241,81394.0,81393.0,0.29461985]
[1743961305761,0.07929241,81394.0,81393.0,0.54577978]
[1743961305961,0.1214,81399.0,81394.0,0.0860341]
[1743961306168,0.1214,81399.0,81394.0,0.2434341]
[1743961306469,0.1214,81399.0,81394.0,0.3717341]
[1743961306657,0.1214,81399.0,81394.0,0.49459252]